bitfinex/quotes_ETHUSD_20250905
["timestamp","ask_amount","ask_price","bid_price","bid_amount"]
[1757055133503,5.30739057,4333.9,4333.8,0.3454]
[1757055134082,5.30739057,4333.9,4333.8,0.029]
[1757055136203,5.30739057,4333.9,4333.8,0.3454]
[1757055138529,5.30739057,4333.9,4333.8,0.029]
[1757055139080,5.48434299,4333.9,4333.8,0.817]
[1757055139699,5.48434299,4333.9,4333.8,0.3454]
[1757055141483,9.36934299,4333.9,4333.8,0.3454]
[1757055141688,5.48434299,4333.9,4333.8,0.3454]
[1757055141991,9.36834299,4333.9,4333.8,0.817]
[1757055143012,9.67304299,4333.9,4333.8,0.029]
[1757055143718,9.36834299,4333.9,4333.8,0.029]
[1757055144422,9.36834299,4333.9,4333.8,0.3454]
[1757055144782,9.36834299,4333.9,4333.8,0.029]
[1757055145415,9.36834299,4333.9,4333.8,0.3454]
[1757055145596,5.48434299,4333.9,4333.8,0.817]
[1757055145792,9.36634299,4333.9,4333.8,0.817]
[1757055145998,9.36634299,4333.9,4333.8,0.3454]
[1757055148223,9.36634299,4333.9,4333.8,0.817]
[1757055148594,9.18839057,4333.9,4333.8,1.3059]
[1757055148801,9.30359057,4333.9,4333.8,1.3059]
[1757055149004,9.30279057,4333.9,4333.8,1.3059]
[1757055149909,9.30279057,4333.9,4333.8,0.3454]
[1757055150704,9.30279057,4333.9,4333.8,1.3059]
[1757055150905,9.30279057,4333.9,4333.8,0.817]
[1757055152727,2.42246689,4334.2,4333.8,1.3059]
[1757055153018,2.30729541,4334.1,4333.9,0.9605]
[1757055153220,2.30729541,4334.1,4334.0,0.9605]
[1757055153419,2.30729541,4334.1,4334.0,1.2769]
[1757055153628,3.9932,4334.2,4334.0,1.2769]
[1757055153792,3.878,4334.2,4334.0,1.2769]
[1757055153992,9.18523086,4334.2,4334.1,0.9605]
[1757055154202,9.18523086,4334.2,4334.1,1.2769]
[1757055154396,9.18523086,4334.2,4334.1,0.788]
[1757055156101,5.30723086,4334.2,4334.1,1.2769]
[1757055156496,3.0,4334.2,4334.1,1.2769]
[1757055157024,1.7,4334.6,4334.1,1.41901]
[1757055157198,4.5707146,4334.7,4334.3,0.1152]
[1757055157397,6.877,4334.7,4334.6,0.3164]
[1757055157697,6.877,4334.7,4334.6,1.2769]
[1757055158230,3.0,4334.7,4334.6,1.2769]
[1757055158533,5.30696472,4334.7,4334.3,0.1152]
[1757055158737,2.30701933,4334.6,4334.3,0.5868]
[1757055158942,6.88,4334.7,4333.9,0.4304]
[1757055159139,0.1152,4334.6,4333.9,0.5456]
[1757055159315,3.88,4334.5,4334.0,0.4304]
[1757055159508,6.18707117,4334.5,4334.4,0.3091]
[1757055160207,3.88,4334.5,4334.4,0.3091]
[1757055160622,6.18707117,4334.5,4334.4,0.3091]
[1757055160953,3.88,4334.5,4334.4,0.3091]
[1757055162112,3.88,4334.5,4334.4,0.7395]
[1757055163317,2.42223192,4334.6,4334.4,0.3091]
[1757055163506,3.879,4334.5,4334.1,0.4837]
[1757055163713,3.879,4334.5,4333.9,0.1152]
[1757055163909,3.879,4334.5,4334.0,0.4304]
[1757055164224,3.879,4334.5,4333.9,2.90628632]
[1757055164225,3.879,4334.5,4334.1,0.9141]
[1757055164545,0.001,4334.8,4334.4,0.3091]
[1757055164740,3.879,4334.8,4334.5,0.9141]
[1757055164946,6.879,4334.8,4334.7,0.3091]
[1757055165118,6.879,4334.8,4334.7,0.7395]
[1757055166041,6.879,4334.8,4334.7,0.3091]
[1757055166343,2.30696472,4334.7,4334.4,0.1152]
[1757055166846,0.4521,4334.7,4334.4,0.1152]
[1757055167044,9.18592667,4334.8,4334.6,0.3091]
[1757055167045,6.879,4334.8,4334.6,0.3091]
[1757055167212,6.879,4334.8,4334.6,0.7395]
[1757055167417,6.879,4334.8,4334.6,0.3091]
[1757055168014,6.879,4334.8,4334.6,0.7395]
[1757055169542,6.879,4334.8,4334.7,0.4304]
[1757055169752,6.877,4334.8,4334.7,1.2232]
[1757055172147,0.001,4334.8,4334.7,0.7928]
[1757055172353,0.001,4334.8,4334.7,1.3384]
[1757055172519,0.001,4334.8,4334.7,3.64536472]
[1757055173254,0.001,4334.8,4334.7,0.8547]
[1757055173665,0.001,4334.8,4334.7,0.4243]
[1757055173866,0.001,4334.8,4334.7,3.64536472]
[1757055176079,0.001,4334.8,4334.7,1.3384]
[1757055176443,0.001,4334.8,4334.7,3.64536472]
[1757055176955,0.0002,4334.8,4334.7,3.64536472]
[1757055177159,0.0002,4334.8,4334.7,4.2406131]
[1757055177475,0.0002,4334.8,4334.7,7.81079208]
[1757055177706,0.0002,4334.8,4334.7,0.1152]
[1757055177707,4.33377898,4334.8,4334.7,0.1152]
[1757055177991,6.09986983,4333.0,4332.9,0.004]
[1757055178146,12.29474171,4333.0,4332.9,0.004]
[1757055178342,13.82015369,4333.0,4332.9,0.004]
[1757055178666,13.17252289,4333.0,4332.9,0.004]
[1757055178865,13.45237549,4333.0,4332.9,0.004]
[1757055180677,12.65637549,4333.0,4332.9,0.004]
[1757055180975,8.54137549,4333.0,4332.9,0.004]
[1757055181171,12.65637549,4333.0,4332.9,0.004]
[1757055181946,12.25867549,4333.0,4332.9,0.004]
[1757055182384,4.79255306,4333.0,4332.9,0.3131]
[1757055182574,9.01975306,4333.0,4332.9,0.3131]
[1757055183147,9.28125306,4333.0,4332.9,0.004]
[1757055183478,9.73335306,4333.0,4332.9,0.004]
[1757055183849,12.04122289,4333.0,4332.9,0.004]
[1757055184352,9.28125306,4333.0,4332.9,0.004]
[1757055184550,11.58912289,4333.0,4332.9,0.004]
[1757055185967,4.90775306,4333.0,4332.9,0.004]
[1757055186263,4.90775306,4333.0,4332.9,0.7435]
[1757055186264,9.01175306,4333.0,4332.9,0.7435]
[1757055186767,9.01175306,4333.0,4332.9,0.3131]
[1757055187185,4.90775306,4333.0,4332.9,0.7435]
[1757055187356,9.01175306,4333.0,4332.9,0.7435]
[1757055187751,9.00975306,4333.0,4332.9,0.7435]
[1757055187955,9.00975306,4333.0,4332.9,0.3131]
[1757055188380,9.00875306,4333.0,4332.9,0.3131]
[1757055190100,9.27025306,4333.0,4332.9,0.004]
[1757055190603,11.57812289,4333.0,4332.9,0.004]
[1757055191187,9.27025306,4333.0,4332.9,0.004]
[1757055191394,9.00875306,4333.0,4332.9,0.004]
[1757055192171,9.00875306,4333.0,4332.9,0.2999]
[1757055192579,9.00875306,4333.0,4332.9,0.004]
[1757055192800,4.90775306,4333.0,4332.9,0.2999]
[1757055193005,0.20775306,4333.0,4332.9,3.5347231]
[1757055193192,0.1152,4333.0,4332.9,1.2268]
[1757055193600,0.4344,4333.2,4332.9,0.4151]
[1757055193810,5.30774867,4333.3,4332.9,0.4151]
[1757055193974,0.69389592,4333.2,4332.9,0.4151]
[1757055194176,1.366,4333.0,4332.9,0.4151]
[1757055194597,1.366,4333.0,4332.9,0.8495]
[1757055194790,1.8004,4333.0,4332.9,0.8495]
[1757055195707,1.8004,4333.0,4332.9,0.4151]
[1757055197787,1.366,4333.0,4332.9,1.342]
[1757055199988,1.366,4333.0,4332.9,0.8495]
[1757055200800,1.366,4333.0,4332.9,3.1574231]
[1757055201589,1.366,4333.0,4332.9,3.6499231]
[1757055202932,1.366,4333.0,4332.9,4.13341772]
[1757055203083,1.366,4333.0,4332.9,8.32561772]
[1757055204799,1.3652,4333.0,4332.9,8.32561772]
[1757055206703,1.3652,4333.0,4332.9,8.31761772]
[1757055209239,1.3652,4333.0,4332.9,12.66664315]
[1757055209543,1.3652,4333.0,4332.9,8.31761772]
[1757055219378,1.3652,4333.0,4332.9,2.4271231]
[1757055219379,2.0973,4333.0,4332.9,2.4271231]
[1757055219535,2.0973,4333.0,4332.9,6.4721231]
[1757055219731,2.5622,4333.0,4332.9,0.1192]
[1757055219957,2.5622,4333.0,4332.9,4.1632]
[1757055221071,2.0983,4333.0,4332.9,4.1632]
[1757055221248,5.77203,4333.0,4332.9,0.1192]
[1757055221430,8.07989983,4333.0,4332.9,0.004]
[1757055223759,8.7739338,4333.0,4332.9,0.004]
[1757055225369,12.8219338,4333.0,4332.9,0.004]
[1757055226368,13.6139338,4333.0,4332.9,0.004]
[1757055228070,13.6059338,4333.0,4332.9,0.004]
[1757055228554,9.5659338,4333.0,4332.9,0.004]
[1757055228741,13.6049338,4333.0,4332.9,0.004]
[1757055232772,13.6041338,4333.0,4332.9,0.004]
[1757055233183,8.3092338,4333.0,4332.9,0.004]
[1757055233479,11.64819983,4333.0,4332.9,0.004]
[1757055233655,11.74073469,4333.0,4332.9,0.004]
[1757055234387,11.73773469,4333.0,4332.9,0.004]
[1757055235264,12.20163469,4333.0,4332.9,0.004]
[1757055235462,12.99363469,4333.0,4332.9,0.004]
[1757055235770,12.20163469,4333.0,4332.9,0.004]
[1757055237683,11.73573469,4333.0,4332.9,0.004]
[1757055238275,7.70773469,4333.0,4332.9,0.004]
[1757055238476,11.73473469,4333.0,4332.9,0.004]
[1757055239366,11.73373469,4333.0,4332.9,0.004]
[1757055239993,12.19763469,4333.0,4332.9,0.004]
[1757055241075,11.73373469,4333.0,4332.9,0.004]
[1757055241384,6.97563469,4333.0,4332.9,0.3059]
[1757055241587,4.45793486,4333.0,4332.9,0.3059]
[1757055241789,5.3874,4333.0,4332.9,1.2351]
[1757055242159,8.3874,4333.0,4332.9,1.2351]
[1757055242563,8.3874,4333.0,4332.9,0.7631]
[1757055244097,4.3654,4333.0,4332.9,0.7631]
[1757055244264,8.3844,4333.0,4332.9,0.7631]
[1757055244782,8.3844,4333.0,4332.9,1.2351]
[1757055245182,8.3844,4333.0,4332.9,0.7631]
[1757055245498,8.3834,4333.0,4332.9,0.7631]
[1757055246190,8.3834,4333.0,4332.9,0.3059]
[1757055246891,10.93566983,4333.0,4332.9,0.004]
[1757055247969,8.6278,4333.0,4332.9,0.004]
[1757055248202,8.3834,4333.0,4332.9,0.004]
[1757055248571,8.3834,4333.0,4332.9,0.3059]
[1757055249312,8.3834,4333.0,4332.9,0.7518]
[1757055249675,8.3834,4333.0,4332.9,0.3059]
[1757055251702,1.3654,4333.0,4332.9,1.2311]
[1757055251899,1.3654,4333.0,4332.9,3.6650331]
[1757055252389,1.3654,4333.0,4332.9,1.2311]
[1757055257414,1.3654,4333.0,4332.9,3.5390231]
[1757055260327,1.3646,4333.0,4332.9,3.5390231]
[1757055272731,1.3646,4333.0,4332.9,7.5160231]
[1757055273233,1.3646,4333.0,4332.9,7.5150231]
[1757055273452,1.3646,4333.0,4332.9,8.6818447]
[1757055279470,0.001,4333.5,4333.4,2.3076568]
[1757055279635,0.001,4333.5,4333.4,9.85035991]
[1757055279841,0.001,4333.5,4333.4,11.19505991]
[1757055285968,0.001,4333.5,4333.4,7.6223568]
[1757055286271,0.001,4333.5,4333.4,9.20263548]
[1757055286743,0.001,4333.5,4333.4,7.97313548]
[1757055286945,0.001,4333.5,4333.4,4.31863548]
[1757055287169,0.2547,4333.5,4333.4,6.3838568]
[1757055287964,0.2547,4333.5,4333.4,6.3818568]
[1757055288266,0.0002,4333.5,4333.4,6.3818568]
[1757055288653,0.2539,4333.5,4333.4,6.3818568]
[1757055290669,0.0002,4333.5,4333.4,6.3818568]
[1757055290865,0.0002,4333.5,4333.4,7.29684517]
[1757055291274,0.0002,4333.5,4333.4,7.29384517]
[1757055291571,0.0002,4333.5,4333.4,8.06864517]
[1757055291775,0.0002,4333.5,4333.4,7.60834517]
[1757055291977,0.0002,4333.5,4333.4,7.29284517]
[1757055293284,0.0002,4333.5,4333.4,8.06864517]
[1757055293449,0.0002,4333.5,4333.4,8.52234517]
[1757055294996,0.0002,4333.5,4333.4,7.60834517]
[1757055295176,0.0002,4333.5,4333.4,8.06864517]
[1757055296111,0.0002,4333.5,4333.4,8.52234517]
[1757055297404,0.0002,4333.5,4333.4,8.06864517]
[1757055297571,0.308,4333.5,4333.4,7.29284517]
[1757055298678,0.0002,4333.5,4333.4,7.29284517]
[1757055300913,0.0002,4333.5,4333.4,7.60834517]
[1757055301117,0.0002,4333.5,4333.4,8.06864517]
[1757055301444,0.0002,4333.5,4333.4,8.52234517]
[1757055304985,0.0002,4333.5,4333.4,7.60834517]
[1757055305499,0.0002,4333.5,4333.4,8.06864517]
[1757055307487,0.0002,4333.5,4333.4,8.52234517]
[1757055311002,0.0002,4333.5,4333.4,8.06864517]
[1757055311338,0.2669,4333.5,4333.4,7.29284517]
[1757055312239,0.0002,4333.5,4333.4,7.29284517]
[1757055312606,0.2686,4333.5,4333.4,7.29284517]
[1757055313828,0.2686,4333.5,4333.4,3.33784517]
[1757055314123,0.2686,4333.5,4333.4,7.27084517]
[1757055314330,0.7353,4333.5,4333.4,7.27084517]
[1757055314624,0.2686,4333.5,4333.4,7.27084517]
[1757055315216,0.0002,4333.5,4333.4,7.55634517]
[1757055315430,0.0002,4333.5,4333.4,7.27084517]
[1757055316112,0.0004,4333.9,4333.8,2.30744381]
[1757055316313,0.4671,4333.9,4333.8,7.93844381]
[1757055316523,0.7338,4333.9,4333.8,8.05364381]
[1757055316918,0.2671,4333.9,4333.8,8.05364381]
[1757055318427,0.7338,4333.9,4333.8,8.05364381]
[1757055320527,1.1757,4333.9,4333.8,8.05364381]
[1757055320701,0.7338,4333.9,4333.8,8.05364381]
[1757055321307,0.0004,4333.9,4333.8,8.33914381]
[1757055321513,0.0004,4333.9,4333.8,8.81044381]
[1757055322600,0.0004,4333.9,4333.8,10.46541949]
[1757055324013,0.0004,4333.9,4333.8,10.46941949]
[1757055325258,0.0004,4333.9,4333.8,11.26141949]
[1757055325410,0.0004,4333.9,4333.8,14.26141949]
[1757055326906,0.0004,4333.9,4333.8,11.26141949]
[1757055328007,0.0004,4333.9,4333.8,11.26141949]
[1757055330935,1e-08,4334.8,4334.2,3.09923086]
[1757055331126,1e-08,4334.8,4334.7,7.44531043]
[1757055331451,1e-08,4334.8,4334.7,16.46601043]
[1757055331752,1e-08,4334.8,4334.7,17.43111043]
[1757055332104,1e-08,4334.8,4334.7,17.52355227]
[1757055332439,1e-08,4334.8,4334.7,22.83755227]
[1757055332645,1e-08,4334.8,4334.7,25.10546024]
[1757055337633,0.88930001,4336.0,4335.9,2.30632625]
[1757055337830,0.88930001,4336.0,4335.9,7.92232625]
[1757055338015,1.15600001,4336.0,4335.9,8.03752625]
[1757055339122,0.7334,4336.0,4335.9,8.03752625]
[1757055339827,1.1337,4336.0,4335.9,8.03752625]
[1757055340328,0.7334,4336.0,4335.9,8.03752625]
[1757055342456,0.2667,4336.0,4335.9,8.03752625]
[1757055343239,0.001,4336.1,4335.9,8.03752625]
[1757055343448,0.001,4336.1,4336.0,2.30627306]
[1757055343851,0.0002,4336.1,4336.0,2.30627306]
[1757055345057,0.0002,4336.1,4336.0,2.61937306]
[1757055345760,0.0002,4336.1,4336.0,2.30627306]
[1757055347161,0.0002,4336.1,4336.0,2.61937306]
[1757055347367,0.0002,4336.1,4336.0,3.52049229]
[1757055348663,0.199,4336.1,4336.0,3.52049229]
[1757055348865,0.199,4336.1,4336.0,2.30627306]
[1757055350749,0.6982,4336.1,4336.0,6.21027306]
[1757055351147,0.199,4336.1,4336.0,6.21027306]
[1757055351469,0.6982,4336.1,4336.0,6.21027306]
[1757055351682,1.1656,4336.1,4336.0,6.21027306]
[1757055352144,0.6982,4336.1,4336.0,6.21027306]
[1757055352340,1.1656,4336.1,4336.0,6.21027306]
[1757055353068,0.6982,4336.1,4336.0,6.21027306]
[1757055353645,1.1656,4336.1,4336.0,2.30627306]
[1757055353843,1.28216,4336.1,4335.9,1.8152]
[1757055354053,1.28216,4336.1,4336.0,3.903]
[1757055354054,0.31556,4336.1,4336.0,3.903]
[1757055354605,1.28216,4336.1,4336.0,3.903]
[1757055356455,1.1656,4336.1,4336.0,3.903]
[1757055357289,0.6982,4336.1,4336.0,3.903]
[1757055357489,0.199,4336.1,4336.0,6.20927306]
[1757055358262,0.199,4336.1,4336.0,6.32847306]
[1757055358461,0.6982,4336.1,4336.0,6.32847306]
[1757055358691,1.1656,4336.1,4336.0,6.32847306]
[1757055359072,1.1656,4336.1,4336.0,0.1192]
[1757055359273,1.1656,4336.1,4336.0,4.0202]
[1757055362179,1.28216,4336.1,4336.0,4.0202]
[1757055362898,0.81476,4336.1,4336.0,4.0202]
[1757055363109,0.6982,4336.1,4336.0,4.0202]
[1757055363309,0.199,4336.1,4336.0,4.0202]
[1757055363607,0.6982,4336.1,4336.0,4.0202]
[1757055366507,0.6982,4336.1,4336.0,6.63957306]
[1757055366508,0.0002,4336.1,4336.0,6.63957306]
[1757055366698,0.0002,4336.1,4336.0,8.15506827]
[1757055366882,0.0002,4336.1,4336.0,8.64166827]
[1757055367902,0.0002,4336.1,4336.0,8.15506827]
[1757055368078,0.0002,4336.1,4336.0,7.09047306]
[1757055370618,0.0002,4336.1,4336.0,7.58737306]
[1757055370914,0.0002,4336.1,4336.0,7.09137306]
[1757055371719,0.0004,4336.6,4336.5,2.30600714]
[1757055371921,0.0004,4336.6,4336.5,6.20700714]
[1757055372101,0.7044,4336.6,4336.5,4.0162]
[1757055372301,0.7044,4336.6,4336.5,6.32220714]
[1757055373807,0.7044,4336.6,4336.5,4.0162]
[1757055374097,0.7044,4336.6,4336.5,6.32220714]
[1757055375425,0.2166,4336.6,4336.5,6.32220714]
[1757055376230,0.0004,4336.6,4336.5,7.06710714]
[1757055377004,0.0004,4336.6,4336.5,6.61530714]
[1757055377732,0.0004,4336.6,4336.5,7.06710714]
[1757055377905,0.0004,4336.6,4336.5,8.43582015]
[1757055379137,0.0004,4336.6,4336.5,7.93982015]
[1757055379320,0.0004,4336.6,4336.5,6.61530714]
[1757055379818,0.0004,4336.6,4336.5,6.32220714]
[1757055380413,0.0004,4336.6,4336.5,7.06710714]
[1757055380621,0.0004,4336.6,4336.5,7.56310714]
[1757055383037,0.0004,4336.6,4336.5,7.06710714]
[1757055383238,0.0004,4336.6,4336.5,6.61530714]
[1757055383420,0.0004,4336.6,4336.5,7.06710714]
[1757055383620,0.0004,4336.6,4336.5,8.0044282]
[1757055383815,0.0004,4336.6,4336.5,8.5004282]
[1757055387655,0.0004,4336.6,4336.5,9.2924282]
[1757055393232,0.0004,4336.6,4336.5,9.2964282]
[1757055393870,0.0004,4336.6,4336.5,9.38883629]
[1757055399574,0.0006,4337.0,4336.9,2.30579446]
[1757055399875,0.0006,4337.0,4336.9,8.13437391]
[1757055400070,0.0006,4337.0,4336.9,8.90437391]
[1757055400573,0.0006,4337.0,4336.9,9.36467391]
[1757055400773,0.0006,4337.0,4336.9,9.47987391]
[1757055401386,0.0006,4337.0,4336.9,9.36467391]
[1757055410404,0.0006,4337.0,4336.9,8.90437391]
[1757055411201,0.0006,4337.0,4336.9,8.13437391]
[1757055412708,0.0006,4337.0,4336.9,8.43997391]
[1757055412878,0.0006,4337.0,4336.9,8.90437391]
[1757055414403,0.0006,4337.0,4336.9,8.43997391]
[1757055414831,0.0006,4337.0,4336.9,8.13437391]
[1757055419631,0.0006,4337.0,4336.9,8.43997391]
[1757055420234,0.2913,4337.0,4336.9,8.13437391]
[1757055420408,0.0006,4337.0,4336.9,8.13437391]
[1757055420810,0.0006,4337.0,4336.9,8.43997391]
[1757055421843,0.0006,4337.0,4336.9,8.90437391]
[1757055422337,0.0006,4337.0,4336.9,7.90379446]
[1757055422538,0.2196,4337.0,4336.9,7.90379446]
[1757055423512,0.0006,4337.0,4336.9,7.90379446]
[1757055425537,0.0006,4337.0,4336.9,8.20939446]
[1757055425736,0.0006,4337.0,4336.9,9.13409446]
[1757055426041,0.0006,4337.0,4336.9,9.8444196]
[1757055427020,0.0006,4337.0,4336.9,9.3800196]
[1757055427225,0.2196,4337.0,4336.9,9.0744196]
[1757055427543,0.2188,4337.0,4336.9,9.0744196]
[1757055428447,0.6978,4337.0,4336.9,4.00479446]
[1757055428649,0.6978,4337.0,4336.9,7.90079446]
[1757055428942,1.1452,4337.0,4336.9,7.90079446]
[1757055429325,0.6978,4337.0,4336.9,7.90079446]
[1757055432561,0.2188,4337.0,4336.9,7.90079446]
[1757055434727,0.001,4337.1,4337.0,2.30574129]
[1757055439370,0.2022,4337.1,4337.0,2.30574129]
[1757055440062,0.001,4337.1,4337.0,2.30574129]
[1757055442237,0.001,4337.1,4337.0,4.86545124]
[1757055444047,0.001,4337.1,4337.0,4.37665124]
[1757055447556,0.6845,4337.1,4337.0,4.37665124]
[1757055448473,0.6845,4337.1,4337.0,3.90295124]
[1757055449285,0.6845,4337.1,4337.0,3.60475124]
[1757055449860,0.6845,4337.1,4337.0,2.30574129]
[1757055449861,0.8857,4337.1,4337.0,2.30574129]
[1757055450161,1.3482,4337.1,4337.0,6.19874129]
[1757055452598,0.8857,4337.1,4337.0,6.19874129]
[1757055453392,1.3482,4337.1,4337.0,6.19874129]
[1757055453897,1.3482,4337.1,4336.9,1.699]
[1757055454201,0.8857,4337.1,4337.0,3.893]
[1757055454573,0.8857,4337.1,4336.9,1.699]
[1757055454774,1.24642918,4337.0,4336.9,1.699]
[1757055455074,1.45022918,4337.0,4336.9,5.592]
[1757055455274,1.44942918,4337.0,4336.9,5.592]
[1757055455470,4.44838815,4337.0,4336.9,5.592]
[1757055455797,2.14264686,4337.0,4336.9,5.592]
[1757055456493,2.14004686,4337.0,4336.9,5.592]
[1757055462476,1.35951768,4337.0,4336.9,5.592]
[1757055462991,1.35951768,4337.0,4336.8,0.004]
[1757055463182,0.4549,4336.9,4336.8,0.004]
[1757055463612,1.1213,4336.9,4336.8,0.004]
[1757055463909,1.1213,4336.9,4336.8,3.896]
[1757055464222,1.60177264,4336.9,4336.8,3.896]
[1757055465026,1.14687264,4336.9,4336.8,3.896]
[1757055465228,0.6664,4336.9,4336.8,3.896]
[1757055466840,1.1188,4336.9,4336.8,3.896]
[1757055469410,0.6664,4336.9,4336.8,3.896]
[1757055469923,3.42459446,4336.9,4336.8,3.896]
[1757055471916,14.65654235,4336.9,4336.8,0.004]
[1757055475443,2.30595397,4336.6,4336.5,0.004]
[1757055475652,9.19795397,4336.6,4336.5,0.004]
[1757055475820,10.31685397,4336.6,4336.5,0.004]
[1757055476143,10.40931098,4336.6,4336.5,0.004]
[1757055479663,5.61431098,4336.6,4336.5,0.004]
[1757055479872,9.50631098,4336.6,4336.5,0.004]
[1757055481364,9.29041098,4336.6,4336.5,0.3047]
[1757055481766,9.29041098,4336.6,4336.5,0.004]
[1757055482052,9.50871098,4336.6,4336.5,0.004]
[1757055483029,9.50791098,4336.6,4336.5,0.004]
[1757055483429,9.96081098,4336.6,4336.5,0.004]
[1757055486156,9.50791098,4336.6,4336.5,0.004]
[1757055486560,3.09245701,4336.6,4336.5,0.3047]
[1757055486762,0.09245701,4336.6,4336.5,1.2102]
[1757055486970,0.001,4337.0,4336.5,1.2102]
[1757055487146,0.001,4337.0,4336.9,2.30579446]
[1757055487655,0.1152,4336.9,4336.8,4.00582381]
[1757055487846,0.1152,4336.9,4336.8,4.30652381]
[1757055488047,0.1152,4336.9,4336.8,5.21202381]
[1757055493091,0.1152,4336.9,4336.8,9.10302381]
[1757055494199,0.1152,4336.9,4336.8,9.47112855]
[1757055494408,0.1162,4336.9,4336.8,9.47112855]
[1757055500180,0.001,4336.9,4336.8,9.47112855]
[1757055507195,0.001,4336.9,4336.8,9.37497402]
[1757055510903,0.0002,4336.9,4336.8,9.37497402]
[1757055520031,0.0002,4336.9,4336.8,9.49017402]
[1757055521132,0.0002,4336.9,4336.8,10.28217402]
[1757055529312,0.0002,4336.9,4336.8,9.81107402]
[1757055529821,0.0002,4336.9,4336.8,9.37667402]
[1757055530244,0.8014,4336.9,4336.8,8.16377402]
[1757055530446,0.8014,4336.9,4336.8,7.79566928]
[1757055531352,0.8014,4336.9,4336.8,7.79966928]
[1757055531850,0.3044,4336.9,4336.8,7.79966928]
[1757055532539,0.0002,4336.9,4336.8,7.79966928]
[1757055535355,0.3044,4336.9,4336.8,7.79966928]
[1757055536128,0.0002,4336.9,4336.8,7.79966928]
[1757055536956,0.3044,4336.9,4336.8,7.79966928]
[1757055537853,0.8014,4336.9,4336.8,7.79966928]
[1757055538158,0.8014,4336.9,4336.8,7.79866928]
[1757055538745,0.8006,4336.9,4336.8,7.79866928]
[1757055539147,0.3036,4336.9,4336.8,7.79866928]
[1757055540029,0.001,4337.0,4336.9,2.30579446]
[1757055540456,0.2272,4337.0,4336.9,2.30579446]
[1757055541359,0.001,4337.0,4336.9,2.30579446]
[1757055546550,0.001,4337.0,4336.9,2.61269446]
[1757055546746,0.001,4337.0,4336.9,3.04899446]
[1757055547165,0.001,4337.0,4336.9,2.30579446]
[1757055548877,0.001,4337.0,4336.9,2.61269446]
[1757055549065,0.001,4337.0,4336.9,4.8449247]
[1757055553785,0.001,4337.0,4336.9,4.3513247]
[1757055559808,0.001,4337.3,4337.2,3.09763497]
[1757055559973,0.001,4337.3,4337.2,6.98063497]
[1757055560164,0.001,4337.3,4337.2,9.95056507]
[1757055560693,0.001,4337.3,4337.2,10.04295439]
[1757055566796,0.0002,4337.3,4337.2,9.95056507]
[1757055567279,0.0002,4337.3,4337.2,9.45696507]
[1757055569903,0.0002,4337.3,4337.2,9.57216507]
[1757055572798,0.2296,4337.3,4337.2,4.92596507]
[1757055572967,0.0002,4337.3,4337.2,8.80696507]
[1757055573974,0.0002,4337.3,4337.2,9.10366507]
[1757055574196,0.0002,4337.3,4337.2,9.19605737]
[1757055574504,0.0002,4337.3,4337.2,9.66255737]
[1757055575703,0.0002,4337.3,4337.2,8.89935737]
[1757055576207,0.0002,4337.3,4337.2,9.19605737]
[1757055576416,0.0002,4337.3,4337.2,9.66255737]
[1757055576705,0.0002,4337.3,4337.2,12.66255737]
[1757055576909,0.0002,4337.3,4337.2,13.15615737]
[1757055583486,1e-08,4337.8,4337.7,3.0973692]
[1757055583825,1e-08,4337.8,4337.7,11.81262289]
[1757055584113,1e-08,4337.8,4337.7,13.28406656]
[1757055586090,1e-08,4337.8,4337.7,13.16583782]
[1757055589494,1e-08,4337.8,4337.7,13.16483782]
[1757055589690,1e-08,4337.8,4337.7,15.38719167]
[1757055593030,1e-08,4337.8,4337.7,14.88909167]
[1757055593908,1e-08,4337.8,4337.7,17.68719167]
[1757055594301,1e-08,4337.8,4337.7,15.38719167]
[1757055594597,0.00020001,4337.9,4337.8,3.09731605]
[1757055594813,0.00020001,4337.9,4337.8,9.71392402]
[1757055595013,0.00020001,4337.9,4337.8,10.02902402]
[1757055595535,0.00020001,4337.9,4337.8,10.52712402]
[1757055595900,0.00020001,4337.9,4337.8,10.52612402]
[1757055597034,0.00020001,4337.9,4337.8,6.64912402]
[1757055597215,0.00020001,4337.9,4337.8,10.52612402]
[1757055598530,0.00020001,4337.9,4337.8,13.52612402]
[1757055599301,0.00020001,4337.9,4337.8,13.02802402]
[1757055599524,0.00020001,4337.9,4337.8,13.52612402]
[1757055600732,0.00020001,4337.9,4337.8,12.55732402]
[1757055601441,0.00020001,4337.9,4337.8,13.52612402]
[1757055602843,0.00020001,4337.9,4337.8,17.86533508]
[1757055606108,1e-08,4338.8,4338.7,3.09683785]
[1757055606434,1e-08,4338.8,4338.7,16.97783785]
[1757055606620,1e-08,4338.8,4338.7,17.76363785]
[1757055606813,0.4972,4339.2,4338.7,17.76363785]
[1757055606814,1e-08,4339.2,4339.1,2.30462538]
[1757055607038,0.4431,4339.7,4339.5,2.30441295]
[1757055607256,0.2239,4339.6,4339.5,3.26839577]
[1757055607549,0.6648,4339.6,4339.5,7.87841295]
[1757055608109,0.6648,4339.6,4339.5,8.31931295]
[1757055608940,1.1645,4339.6,4339.5,8.31931295]
[1757055612246,1.1645,4339.6,4339.5,4.44331295]
[1757055612454,1.1645,4339.6,4339.5,8.31831295]
[1757055612907,1.1645,4339.6,4339.5,4.44331295]
[1757055613265,1.28345,4339.6,4339.5,1.698]
[1757055613414,1.97621465,4339.6,4339.5,5.573]
[1757055614826,1.28345,4339.6,4339.5,5.573]
[1757055616147,1.1645,4339.6,4339.5,5.573]
[1757055616445,1.1645,4339.6,4339.5,7.87741295]
[1757055620223,0.6648,4339.6,4339.5,7.87741295]
[1757055620425,0.2239,4339.6,4339.5,7.87741295]
[1757055620649,0.69270866,4340.0,4339.5,7.87741295]
[1757055620650,0.3837,4340.0,4339.7,2.30430674]
[1757055620857,0.4997,4340.2,4339.7,6.17830674]